fUST/lending_fUST_20240115
["ID","MTS","AMOUNT","RATE_DAILY","PERIOD"]
[311630906,1705272644141,-500.0,0.00027671,2]
[311630907,1705272644150,-500.0,0.00027671,2]
[311630908,1705272644160,-500.0,0.00027671,2]
[311630909,1705272644169,-500.0,0.00027671,2]
[311630910,1705272644180,-1000.0,0.00027671,2]
[311630911,1705272644190,-500.0,0.00027671,2]
[311630912,1705272644199,-500.0,0.00027671,2]
[311630913,1705272644208,-500.0,0.00027671,2]
[311630914,1705272644217,-500.0,0.00027671,2]
[311630915,1705272644227,-500.0,0.00027671,2]
[311630916,1705272644236,-500.0,0.00027671,2]
[311630917,1705272644245,-500.0,0.00027671,2]
[311630918,1705272644254,-815.19,0.00027671,2]
[311630919,1705272644263,-500.0,0.00027671,2]
[311630920,1705272644272,-500.0,0.00027671,2]
[311630921,1705272644281,-550.06570778,0.00027671,2]
[311630922,1705272644291,-500.0,0.00027671,2]
[311630923,1705272644301,-500.0,0.00027671,2]
[311630924,1705272644311,-163.58291309,0.00027671,2]
[311630925,1705272644320,-2614.48,0.00027671,2]
[311630926,1705272644330,-500.0,0.00027671,2]
[311630927,1705272644339,-500.0,0.00027671,2]
[311630928,1705272644349,-500.0,0.00027671,2]
[311630929,1705272644358,-500.0,0.00027671,2]
[311630930,1705272644368,-500.0,0.00027671,2]
[311630931,1705272644377,-500.0,0.00027671,2]
[311630932,1705272644386,-500.0,0.00027671,2]
[311630933,1705272644395,-500.0,0.00027671,2]
[311630934,1705272644405,-543.83676773,0.00027671,2]
[311630935,1705272644413,-500.0,0.00027671,2]
[311630936,1705272644422,-500.0,0.00027671,2]
[311630937,1705272644431,-532.63,0.00027671,2]
[311630938,1705272644440,-705.22,0.00027671,2]
[311630939,1705272644449,-500.0,0.00027671,2]
[311630940,1705272644460,-500.0,0.00027671,2]
[311630941,1705272644468,-500.0,0.00027671,2]
[311630942,1705272644477,-500.0,0.00027671,2]
[311630943,1705272644486,-670.75,0.00027671,2]
[311630944,1705272644495,-500.0,0.00027671,2]
[311630945,1705272644505,-500.0,0.00027671,2]
[311630946,1705272644514,-1842.46,0.00027671,2]
[311630947,1705272644523,-500.0,0.00027671,2]
[311630948,1705272644532,-621.30815184,0.00027671,2]
[311630949,1705272644541,-350.0,0.00027671,2]
[311630950,1705272644550,-500.0,0.00027671,2]
[311630951,1705272644559,-500.0,0.00027671,2]
[311630952,1705272644568,-570.14526837,0.00027671,2]
[311630953,1705272644577,-500.0,0.00027671,2]
[311630954,1705272644587,-579.92326202,0.00027671,2]
[311630955,1705272644596,-538.42213819,0.00027671,2]
[311630956,1705272644605,-500.0,0.00027671,2]
[311630957,1705272644614,-500.0,0.00027671,2]
[311630958,1705272644623,-500.0,0.00027671,2]
[311630959,1705272644632,-528.99719746,0.00027671,2]
[311630960,1705272644641,-1323.57,0.00027671,2]
[311630961,1705272644650,-500.0,0.00027671,2]
[311630962,1705272644659,-500.0,0.00027671,2]
[311630963,1705272644668,-594.57,0.00027671,2]
[311630964,1705272644677,-588.45,0.00027671,2]
[311630965,1705272644686,-500.0,0.00027671,2]
[311630966,1705272644695,-500.0,0.00027671,2]
[311630967,1705272644704,-500.0,0.00027671,2]
[311630968,1705272644712,-500.0,0.00027671,2]
[311630969,1705272644721,-500.0,0.00027671,2]
[311630970,1705272644730,-500.0,0.00027671,2]
[311630971,1705272644739,-970.43,0.00027671,2]
[311630972,1705272644748,-500.0,0.00027671,2]
[311630973,1705272644757,-500.0,0.00027671,2]
[311630974,1705272644766,-500.0,0.00027671,2]
[311630975,1705272644775,-500.0,0.00027671,2]
[311630976,1705272644784,-500.0,0.00027671,2]
[311630977,1705272644792,-1381.57,0.00027671,2]
[311630978,1705272644801,-500.0,0.00027671,2]
[311630979,1705272644810,-500.0,0.00027671,2]
[311630980,1705272644819,-500.0,0.00027671,2]
[311630981,1705272644828,-500.0,0.00027671,2]
[311630982,1705272644837,-500.0,0.00027671,2]
[311630983,1705272644847,-500.0,0.00027671,2]
[311630984,1705272644858,-500.0,0.00027671,2]
[311630985,1705272644867,-500.0,0.00027671,2]
[311630986,1705272644877,-500.0,0.00027671,2]
[311630987,1705272644886,-500.0,0.00027671,2]
[311630988,1705272644895,-500.0,0.00027671,2]
[311630989,1705272644904,-154.92075699,0.00027671,2]
[311630990,1705272644913,-500.0,0.00027671,2]
[311630991,1705272644922,-500.0,0.00027671,2]
[311630992,1705272644931,-500.0,0.00027671,2]
[311630993,1705272644940,-161.62947205,0.00027671,2]
[311630994,1705272644949,-502.42959231,0.00027671,2]
[311630995,1705272644958,-500.0,0.00027671,2]
[311630996,1705272644967,-500.0,0.00027671,2]
[311630997,1705272644976,-225.69017351,0.00027671,2]
[311630998,1705272644986,-500.0,0.00027671,2]
[311630999,1705272644995,-501.32142053,0.00027671,2]
[311631000,1705272645004,-529.07208491,0.00027671,2]
[311631001,1705272645014,-500.0,0.00027671,2]
[311631002,1705272645023,-500.0,0.00027671,2]
[311631003,1705272645032,-500.0,0.00027671,2]
[311631004,1705272645041,-500.0,0.00027671,2]
[311631005,1705272645050,-500.0,0.00027671,2]
[311631006,1705272645059,-3228.15,0.00027671,2]
[311631007,1705272645068,-500.0,0.00027671,2]
[311631008,1705272645077,-500.0,0.00027671,2]
[311631009,1705272645086,-500.0,0.00027671,2]
[311631010,1705272645095,-500.0,0.00027671,2]
[311631011,1705272645104,-500.0,0.00027671,2]
[311631012,1705272645113,-428.8409721,0.00027671,2]
[311631013,1705272645123,-500.0,0.00027671,2]
[311631014,1705272645132,-500.0,0.00027671,2]
[311631015,1705272645141,-500.0,0.00027671,2]
[311631016,1705272645150,-543.82779419,0.00027671,2]
[311631017,1705272645159,-500.0,0.00027671,2]
[311631018,1705272645169,-500.0,0.00027671,2]
[311631019,1705272645178,-500.0,0.00027671,2]
[311631020,1705272645187,-500.0,0.00027671,2]
[311631021,1705272645197,-500.0,0.00027671,2]
[311631022,1705272645206,-1772.74,0.00027671,2]
[311631023,1705272645216,-500.0,0.00027671,2]
[311631024,1705272645226,-500.0,0.00027671,2]
[311631025,1705272645235,-500.0,0.00027671,2]
[311631026,1705272645245,-500.0,0.00027671,2]
[311631027,1705272645254,-500.0,0.00027671,2]
[311631028,1705272645264,-500.0,0.00027671,2]
[311631029,1705272645337,-500.0,0.00027671,2]
[311631030,1705272645346,-500.0,0.00027671,2]
[311631031,1705272645355,-500.0,0.00027671,2]
[311631032,1705272645364,-646.78874454,0.00027671,2]
[311631033,1705272645373,-500.0,0.00027671,2]
[311631034,1705272645382,-500.0,0.00027671,2]
[311631035,1705272645391,-500.0,0.00027671,2]
[311631036,1705272645400,-500.0,0.00027671,2]
[311631037,1705272645409,-500.0,0.00027671,2]
[311631038,1705272645418,-3079.02,0.00027671,2]
[311631039,1705272645426,-500.0,0.00027671,2]
[311631040,1705272645435,-500.0,0.00027671,2]
[311631041,1705272645445,-500.0,0.00027671,2]
[311631042,1705272645454,-500.0,0.00027671,2]
[311631043,1705272645463,-500.0,0.00027671,2]
[311631044,1705272645472,-459.31432045,0.00027671,2]
[311631045,1705272645481,-500.0,0.00027671,2]
[311631046,1705272645490,-500.0,0.00027671,2]
[311631047,1705272645499,-500.0,0.00027671,2]
[311631048,1705272645508,-892.86,0.00027671,2]
[311631049,1705272645517,-849.43,0.00027671,2]
[311631050,1705272645526,-500.0,0.00027671,2]
[311631051,1705272645537,-500.49527847,0.00027671,2]
[311631052,1705272645546,-500.0,0.00027671,2]
[311631053,1705272645555,-500.0,0.00027671,2]
[311631054,1705272645564,-500.0,0.00027671,2]
[311631055,1705272645574,-500.0,0.00027671,2]
[311631056,1705272645583,-522.20027659,0.00027671,2]
[311631057,1705272645592,-500.0,0.00027671,2]
[311631058,1705272645601,-500.0,0.00027671,2]
[311631059,1705272645613,-500.0,0.00027671,2]
[311631060,1705272645622,-500.0,0.00027671,2]
[311631061,1705272645632,-494.18805421,0.00027671,2]
[311631062,1705272645641,-500.0,0.00027671,2]
[311631063,1705272645652,-500.0,0.00027671,2]
[311631064,1705272645661,-500.0,0.00027671,2]
[311631065,1705272645671,-500.0,0.00027671,2]
[311631066,1705272645681,-500.32041924,0.00027671,2]
[311631067,1705272645690,-521.55046774,0.00027671,2]
[311631068,1705272645700,-500.0,0.00027671,2]
[311631069,1705272645709,-500.0,0.00027671,2]
[311631070,1705272645718,-500.0,0.00027671,2]
[311631071,1705272645727,-500.0,0.00027671,2]
[311631072,1705272645736,-540.23,0.00027671,2]
[311631073,1705272645745,-2057.01,0.00027671,2]
[311631074,1705272645754,-500.0,0.00027671,2]
[311631075,1705272645763,-168.8128715,0.00027671,2]
[311631076,1705272645773,-500.0,0.00027671,2]
[311631077,1705272645782,-500.0,0.00027671,2]
[311631078,1705272645791,-1112.6,0.00027671,2]
[311631079,1705272645800,-500.0,0.00027671,2]
[311631080,1705272645810,-500.0,0.00027671,2]
[311631081,1705272645819,-614.50021481,0.00027671,2]
[311631082,1705272645828,-500.0,0.00027671,2]
[311631083,1705272645837,-1076.71,0.00027671,2]
[311631084,1705272645847,-500.0,0.00027671,2]
[311631085,1705272645856,-500.0,0.00027671,2]
[311631086,1705272645865,-504.4552916,0.00027671,2]
[311631087,1705272645875,-500.0,0.00027671,2]
[311631088,1705272645884,-500.0,0.00027671,2]
[311631089,1705272645893,-500.0,0.00027671,2]
[311631090,1705272645903,-245.26060203,0.00027671,2]
[311631091,1705272645912,-500.0,0.00027671,2]
[311631092,1705272645922,-500.0,0.00027671,2]
[311631093,1705272645931,-500.0,0.00027671,2]
[311631095,1705272645942,-500.0,0.00027671,2]
[311631097,1705272645951,-507.33239193,0.00027671,2]
[311631098,1705272645961,-500.0,0.00027671,2]
[311631099,1705272645970,-500.0,0.00027671,2]
[311631100,1705272645980,-472.51850201,0.00027671,2]
[311631101,1705272645989,-527.81872152,0.00027671,2]
[311631102,1705272645998,-500.0,0.00027671,2]
[311631103,1705272646007,-500.0,0.00027671,2]
[311631104,1705272646016,-1701.95,0.00027671,2]
[311631105,1705272646026,-1789.57,0.00027671,2]
[311631106,1705272646037,-500.0,0.00027671,2]
[311631107,1705272646046,-500.0,0.00027671,2]
[311631109,1705272646056,-500.0,0.00027671,2]
[311631111,1705272646065,-500.0,0.00027671,2]
[311631113,1705272646074,-1779.96,0.00027671,2]
[311631115,1705272646083,-871.13,0.00027671,2]
[311631117,1705272646092,-187.83149866,0.00027671,2]
[311631119,1705272646101,-500.0,0.00027671,2]
[311631121,1705272646111,-500.0,0.00027671,2]
[311631123,1705272646121,-8312.98,0.00027671,2]
[311631125,1705272646130,-646.54670166,0.00027671,2]
[311631127,1705272646139,-500.0,0.00027671,2]
[311631130,1705272646149,-500.0,0.00027671,2]
[311631133,1705272646158,-500.0,0.00027671,2]
[311631135,1705272646167,-500.0,0.00027671,2]
[311631138,1705272646177,-500.0,0.00027671,2]
[311631140,1705272646186,-500.0,0.00027671,2]
[311631143,1705272646194,-500.0,0.00027671,2]
[311631146,1705272646203,-9262.35,0.00027671,2]
[311631149,1705272646213,-508.37912011,0.00027671,2]
[311631152,1705272646222,-500.0,0.00027671,2]
[311631154,1705272646231,-500.0,0.00027671,2]
[311631156,1705272646240,-3347.31,0.00027671,2]
[311631159,1705272646249,-500.0,0.00027671,2]
[311631161,1705272646259,-925.87,0.00027671,2]
[311631164,1705272646268,-500.0,0.00027671,2]
[311631166,1705272646277,-4487.32,0.00027671,2]
[311631169,1705272646286,-500.0,0.00027671,2]
[311631172,1705272646295,-500.0,0.00027671,2]
[311631175,1705272646304,-500.0,0.00027671,2]
[311631177,1705272646313,-500.0,0.00027671,2]
[311631179,1705272646322,-500.0,0.00027671,2]
[311631181,1705272646331,-500.0,0.00027671,2]
[311631183,1705272646340,-500.0,0.00027671,2]
[311631185,1705272646350,-2429.5,0.00027671,2]
[311631187,1705272646359,-248.67799791,0.00027671,2]
[311631190,1705272646369,-500.0,0.00027671,2]
[311631193,1705272646378,-500.0,0.00027671,2]
[311631196,1705272646387,-500.0,0.00027671,2]
[311631198,1705272646397,-500.0,0.00027671,2]
[311631200,1705272646407,-500.0,0.00027671,2]
[311631201,1705272646417,-502.5188286,0.00027671,2]
[311631203,1705272646426,-301.68649105,0.00027671,2]
[311631205,1705272646436,-500.0,0.00027671,2]
[311631206,1705272646445,-500.0,0.00027671,2]
[311631207,1705272646454,-500.0,0.00027671,2]
[311631208,1705272646463,-401.11191083,0.00027671,2]
[311631209,1705272646472,-566.43077222,0.00027671,2]
[311631210,1705272646481,-500.0,0.00027671,2]
[311631211,1705272646490,-500.0,0.00027671,2]
[311631212,1705272646499,-500.0,0.00027671,2]
[311631213,1705272646508,-500.0,0.00027671,2]
[311631214,1705272646517,-562.17,0.00027671,2]
[311631215,1705272646526,-500.0,0.00027671,2]
[311631216,1705272646536,-500.0,0.00027671,2]
[311631217,1705272646545,-500.0,0.00027671,2]
[311631218,1705272646554,-500.0,0.00027671,2]
[311631219,1705272646563,-29175.89,0.00027671,2]
[311631220,1705272646573,-383.49442707,0.00027671,2]
[311631221,1705272646582,-521.25,0.00027671,2]
[311631222,1705272646591,-500.0,0.00027671,2]
[311631223,1705272646600,-500.0,0.00027671,2]
[311631224,1705272646609,-500.0,0.00027671,2]
[311631225,1705272646618,-500.0,0.00027671,2]
[311631226,1705272646627,-18949.36,0.00027671,2]
[311631227,1705272646644,-1093.01,0.00027671,2]
[311631228,1705272646653,-1000.0,0.00027671,2]
[311631230,1705272646662,-500.0,0.00027671,2]
[311631232,1705272646671,-500.0,0.00027671,2]
[311631233,1705272646680,-500.0,0.00027671,2]
[311631234,1705272646752,-500.0,0.00027671,2]
[311631235,1705272646762,-500.0,0.00027671,2]
[311631236,1705272646771,-6403.37,0.00027671,2]
[311631237,1705272646780,-500.0,0.00027671,2]
[311631238,1705272646790,-500.0,0.00027671,2]
[311631239,1705272646799,-500.0,0.00027671,2]
[311631240,1705272646809,-500.0,0.00027671,2]
[311631241,1705272646820,-500.0,0.00027671,2]
[311631242,1705272646829,-500.0,0.00027671,2]
[311631243,1705272646838,-500.0,0.00027671,2]
[311631245,1705272646848,-500.0,0.00027671,2]
[311631247,1705272646858,-500.0,0.00027671,2]
[311631249,1705272646867,-500.0,0.00027671,2]
[311631251,1705272646876,-500.0,0.00027671,2]
[311631253,1705272646885,-500.0,0.00027671,2]
[311631254,1705272646894,-500.0,0.00027671,2]
[311631255,1705272646903,-500.0,0.00027671,2]
[311631256,1705272646912,-500.0,0.00027671,2]
[311631257,1705272646921,-420.22029763,0.00027671,2]
[311631258,1705272646931,-500.0,0.00027671,2]
[311631259,1705272646941,-500.0,0.00027671,2]
[311631260,1705272646950,-500.0,0.00027671,2]
[311631261,1705272646958,-500.0,0.00027671,2]
[311631262,1705272646968,-500.0,0.00027671,2]
[311631263,1705272646977,-906.2,0.00027671,2]
[311631264,1705272646987,-500.0,0.00027671,2]
[311631265,1705272646997,-500.68191644,0.00027671,2]
[311631266,1705272647007,-500.0,0.00027671,2]
[311631267,1705272647016,-500.0,0.00027671,2]
[311631268,1705272647025,-500.45685552,0.00027671,2]
[311631269,1705272647036,-1325.48,0.00027671,2]
[311631270,1705272647046,-500.0,0.00027671,2]
[311631271,1705272647055,-500.0,0.00027671,2]
[311631272,1705272647065,-500.0,0.00027671,2]
[311631273,1705272647074,-500.0,0.00027671,2]
[311631274,1705272647083,-1651.83,0.00027671,2]
[311631275,1705272647092,-500.0,0.00027671,2]
[311631276,1705272647101,-1000.0,0.00027671,2]
[311631277,1705272647111,-502.50157674,0.00027671,5]
[311631278,1705272647120,-500.0,0.00027671,2]
[311631279,1705272647129,-500.0,0.00027671,2]
[311631280,1705272647139,-500.0,0.00027671,2]
[311631281,1705272647148,-7871.18,0.00027671,2]
[311631282,1705272647158,-500.0,0.00027671,2]
[311631283,1705272647167,-500.0,0.00027671,2]
[311631284,1705272647176,-500.0,0.00027671,2]
[311631285,1705272647186,-500.0,0.00027671,2]
[311631286,1705272647196,-500.0,0.00027671,2]
[311631287,1705272647205,-348.3818456,0.00027671,2]
[311631288,1705272647214,-500.0,0.00027671,2]
[311631289,1705272647224,-523.53850014,0.00027671,2]
[311631290,1705272647234,-934.63,0.00027671,2]
[311631291,1705272647243,-500.0,0.00027671,2]
[311631292,1705272647252,-500.0,0.00027671,2]
[311631293,1705272647262,-531.03698778,0.00027671,2]
[311631294,1705272647271,-500.0,0.00027671,2]
[311631295,1705272647280,-500.0,0.00027671,2]
[311631296,1705272647289,-774.33,0.00027671,2]
[311631297,1705272647299,-948.23,0.00027671,2]
[311631298,1705272647308,-1359.78,0.00027671,2]
[311631299,1705272647318,-537.38332628,0.00027671,2]
[311631300,1705272647327,-500.0,0.00027671,2]
[311631301,1705272647336,-500.0,0.00027671,2]
[311631302,1705272647346,-500.0,0.00027671,2]
[311631303,1705272647355,-500.0,0.00027671,2]
[311631304,1705272647364,-500.0,0.00027671,2]
[311631305,1705272647373,-1607.02,0.00027671,2]
[311631306,1705272647382,-500.0,0.00027671,2]
[311631307,1705272647391,-500.0,0.00027671,2]
[311631308,1705272647401,-501.52822313,0.00027671,2]
[311631309,1705272647410,-500.0,0.00027671,2]
[311631310,1705272647419,-500.92388301,0.00027671,2]
[311631311,1705272647428,-153.0,0.00027671,2]
[311631312,1705272647437,-198.8089634,0.00027671,2]
[311631313,1705272647447,-688.18928243,0.000277,2]
[311631314,1705272647456,-153.0,0.000277,2]
[311631315,1705272647465,-198.8089634,0.000277,2]
[311631316,1705272647474,-153.0,0.000277,2]
[311631317,1705272647484,-198.8089634,0.000277,2]
[311631318,1705272647493,-500.0,0.00027808,2]
[311631319,1705272647502,-2000.0,0.000279,2]
[311631320,1705272647511,-2000.0,0.0002791,2]
[311631321,1705272647521,-857.62,0.00027919,2]
[311631322,1705272647530,-2000.0,0.0002792,2]
[311631323,1705272647539,-2000.0,0.0002793,2]
[311631324,1705272647549,-3037.966338,0.0002793,2]
[311631325,1705272647558,-3037.966338,0.0002793,2]
[311631326,1705272647567,-2000.0,0.0002794,2]
[311631327,1705272647576,-857.62,0.00027944,2]
[311631328,1705272647585,-857.62,0.00027944,2]
[311631329,1705272647596,-500.0,0.00027944,2]
[311631330,1705272647606,-500.0,0.00027944,2]
[311631331,1705272647616,-521.2196797,0.00027944,2]
[311631332,1705272647625,-151.0,0.00027945,2]
[311631333,1705272647634,-151.0,0.00027945,2]
[311631334,1705272647644,-710.726053,0.00027945,2]
[311631335,1705272647653,-710.726053,0.00027945,2]
[311631336,1705272647662,-710.726053,0.00027945,2]
[311631337,1705272647673,-710.726053,0.00027945,2]
[311631338,1705272647682,-3037.966338,0.00027945,2]
[311631339,1705272647691,-3037.966338,0.00027945,2]
[311631340,1705272647701,-3037.966338,0.00027945,2]
[311631341,1705272647710,-3037.966338,0.00027945,2]
[311631342,1705272647719,-151.0,0.00027945,2]
[311631343,1705272647729,-151.0,0.00027945,2]
[311631344,1705272647738,-151.0,0.00027945,2]
[311631345,1705272647747,-151.0,0.00027945,2]
[311631346,1705272647757,-261.12680454,0.00027945,2]
[311631347,1705272647767,-500.0,0.00027945,2]
[311631348,1705272647776,-500.0,0.00027945,2]
[311631349,1705272647785,-500.0,0.00027945,2]
[311631350,1705272647795,-500.0,0.00027945,2]
[311631351,1705272647805,-500.0,0.00027945,2]
[311631352,1705272647814,-500.0,0.00027945,2]
[311631353,1705272647823,-500.0,0.00027945,2]
[311631354,1705272647832,-500.0,0.00027945,2]
[311631355,1705272647841,-502.88239032,0.00027945,2]
[311631356,1705272647851,-500.0,0.00027945,2]
[311631357,1705272647859,-815.19,0.00027945,2]
[311631358,1705272647868,-500.0,0.00027945,2]
[311631359,1705272647878,-500.0,0.00027945,2]
[311631360,1705272647887,-2614.48,0.00027945,2]
[311631361,1705272647896,-500.0,0.00027945,2]
[311631362,1705272647905,-500.0,0.00027945,2]
[311631363,1705272647916,-500.0,0.00027945,2]
[311631364,1705272647925,-500.0,0.00027945,2]
[311631365,1705272647934,-500.0,0.00027945,2]
[311631366,1705272647944,-500.0,0.00027945,2]
[311631367,1705272647953,-500.0,0.00027945,2]
[311631368,1705272647963,-500.0,0.00027945,2]
[311631369,1705272647973,-500.0,0.00027945,2]
[311631370,1705272647982,-532.63,0.00027945,2]
[311631371,1705272647991,-500.0,0.00027945,2]
[311631372,1705272648060,-705.22,0.00027945,2]
[311631373,1705272648069,-500.0,0.00027945,2]
[311631374,1705272648078,-500.0,0.00027945,2]
[311631375,1705272648088,-600.54323658,0.00027945,2]
[311631376,1705272648097,-670.75,0.00027945,2]
[311631377,1705272648107,-500.0,0.00027945,2]
[311631378,1705272648116,-500.0,0.00027945,2]
[311631379,1705272648125,-1842.46,0.00027945,2]
[311631380,1705272648135,-500.0,0.00027945,2]
[311631381,1705272648144,-500.0,0.00027945,2]
[311631382,1705272648153,-500.0,0.00027945,2]
[311631383,1705272648162,-500.0,0.00027945,2]
[311631384,1705272648172,-500.0,0.00027945,2]
[311631385,1705272648181,-533.9290065,0.00027945,2]
[311631386,1705272648191,-1323.57,0.00027945,2]
[311631387,1705272648201,-500.0,0.00027945,2]
[311631388,1705272648211,-594.57,0.00027945,2]
[311631389,1705272648220,-588.45,0.00027945,2]
[311631390,1705272648229,-500.0,0.00027945,2]
[311631391,1705272648239,-500.0,0.00027945,2]
[311631392,1705272648248,-488.90386455,0.00027945,2]
[311631393,1705272648258,-500.0,0.00027945,2]
[311631394,1705272648267,-500.0,0.00027945,2]
[311631395,1705272648277,-970.43,0.00027945,2]
[311631396,1705272648286,-500.0,0.00027945,2]
[311631397,1705272648295,-500.0,0.00027945,2]
[311631398,1705272648304,-500.0,0.00027945,2]
[311631399,1705272648313,-500.0,0.00027945,2]
[311631400,1705272648323,-500.0,0.00027945,2]
[311631401,1705272648332,-1381.57,0.00027945,2]
[311631402,1705272648341,-500.0,0.00027945,2]
[311631403,1705272648350,-224.57764706,0.00027945,2]
[311631404,1705272648360,-500.0,0.00027945,2]
[311631405,1705272648369,-500.0,0.00027945,2]
[311631406,1705272648378,-508.42158599,0.00027945,2]
[311631407,1705272648388,-500.0,0.00027945,2]
[311631408,1705272648397,-500.0,0.00027945,2]
[311631409,1705272648406,-500.0,0.00027945,2]
[311631410,1705272648416,-500.0,0.00027945,2]
[311631411,1705272648426,-500.0,0.00027945,2]
[311631412,1705272648436,-500.0,0.00027945,2]
[311631413,1705272648445,-500.0,0.00027945,2]
[311631414,1705272648454,-500.0,0.00027945,2]
[311631415,1705272648463,-500.0,0.00027945,2]
[311631416,1705272648473,-500.0,0.00027945,2]
[311631417,1705272648482,-500.0,0.00027945,2]
[311631418,1705272648491,-529.08421022,0.00027945,2]
[311631419,1705272648501,-500.0,0.00027945,2]
[311631420,1705272648510,-320.29468974,0.00027945,2]
[311631421,1705272648519,-3228.15,0.00027945,2]
[311631422,1705272648529,-500.0,0.00027945,2]
[311631423,1705272648538,-500.0,0.00027945,2]
[311631424,1705272648547,-500.0,0.00027945,2]
[311631425,1705272648556,-500.0,0.00027945,2]
[311631426,1705272648566,-500.0,0.00027945,2]
[311631427,1705272648575,-500.0,0.00027945,2]
[311631428,1705272648585,-500.0,0.00027945,2]
[311631429,1705272648594,-489.84944063,0.00027945,2]
[311631430,1705272648603,-500.0,0.00027945,2]
[311631431,1705272648613,-500.0,0.00027945,2]
[311631432,1705272648623,-215.85448759,0.00027945,2]
[311631433,1705272648632,-500.0,0.00027945,2]
[311631434,1705272648641,-1772.74,0.00027945,2]
[311631435,1705272648650,-500.0,0.00027945,2]
[311631436,1705272648660,-500.0,0.00027945,2]
[311631437,1705272648670,-500.0,0.00027945,2]
[311631438,1705272648679,-500.0,0.00027945,2]
[311631439,1705272648688,-500.0,0.00027945,2]
[311631440,1705272648698,-500.0,0.00027945,2]
[311631441,1705272648707,-500.0,0.00027945,2]
[311631442,1705272648717,-500.0,0.00027945,2]
[311631443,1705272648726,-500.0,0.00027945,2]
[311631444,1705272648735,-500.0,0.00027945,2]
[311631445,1705272648744,-500.0,0.00027945,2]
[311631446,1705272648754,-500.0,0.00027945,2]
[311631447,1705272648763,-500.0,0.00027945,2]
[311631448,1705272648772,-3079.02,0.00027945,2]
[311631449,1705272648782,-253.57805257,0.00027945,2]
[311631450,1705272648791,-500.0,0.00027945,2]
[311631451,1705272648800,-500.0,0.00027945,2]
[311631452,1705272648810,-500.0,0.00027945,2]
[311631453,1705272648819,-500.0,0.00027945,2]
[311631454,1705272648828,-597.80011119,0.00027945,2]
[311631455,1705272648837,-500.0,0.00027945,2]
[311631456,1705272648846,-892.86,0.00027945,2]
[311631457,1705272648855,-500.0,0.00027945,2]
[311631458,1705272648865,-849.43,0.00027945,2]
[311631459,1705272648874,-199.36649981,0.00027945,2]
[311631460,1705272648883,-615.79197859,0.00027945,2]
[311631461,1705272648892,-500.0,0.00027945,2]
[311631462,1705272648902,-500.0,0.00027945,2]
[311631463,1705272648911,-288.23732687,0.00027945,2]
[311631464,1705272648920,-500.0,0.00027945,2]
[311631465,1705272648929,-500.0,0.00027945,2]
[311631466,1705272648938,-209.81495602,0.00027945,2]
[311631467,1705272648947,-500.0,0.00027945,2]
[311631468,1705272648956,-500.0,0.00027945,2]
[311631469,1705272648965,-500.0,0.00027945,2]
[311631470,1705272648974,-500.0,0.00027945,2]